bitfinex/quotes_ETHUSD_20260219
["timestamp","ask_amount","ask_price","bid_price","bid_amount"]
[1771534881264,0.003,1953.2,1952.8,2.1545924]
[1771534882370,0.003,1953.1,1952.8,2.1545924]
[1771534882571,0.003,1953.4,1952.8,2.1545924]
[1771534882765,2.15513949,1953.4,1952.8,2.1545924]
[1771534883080,0.0011,1953.1,1952.8,2.1545924]
[1771534883290,0.0011,1953.1,1952.9,3.43473987]
[1771534883670,0.0011,1953.2,1953.0,2.1545924]
[1771534883872,0.0041,1953.2,1953.0,2.1545924]
[1771534884579,0.0041,1953.2,1952.9,2.1545924]
[1771534884750,0.003,1953.1,1952.7,2.1545924]
[1771534885555,0.0011,1953.2,1952.8,2.1545924]
[1771534885760,0.003,1953.1,1952.8,2.1545924]
[1771534889757,0.003,1953.0,1952.8,3.43478728]
[1771534890085,0.003,1953.0,1952.8,2.1545924]
[1771534890255,0.003,1953.0,1952.8,3.43479709]
[1771534890552,0.003,1953.0,1952.8,3.43479482]
[1771534891565,0.003,1953.0,1952.9,2.1545924]
[1771534891885,0.0011,1953.2,1952.9,3.43472632]
[1771534892379,0.0011,1953.2,1952.9,3.43473976]
[1771534894486,0.0011,1953.2,1952.9,2.1545924]
[1771534895482,0.0011,1953.2,1952.9,3.4347256]
[1771534895681,0.0011,1953.2,1952.9,3.43572496]
[1771534896058,0.0011,1953.1,1952.9,3.43572496]
[1771534896670,0.0011,1953.1,1952.9,3.43572365]
[1771534896871,0.0011,1953.1,1952.9,2.1555924]
[1771534897489,1.95341164,1953.1,1952.8,0.001]
[1771534897667,1.95341164,1953.1,1952.6,0.001]
[1771534897868,1.95231164,1953.0,1952.6,0.001]
[1771534898480,0.0011,1953.2,1952.9,2.02167579]
[1771534899875,0.0011,1953.2,1952.9,3.30177435]
[1771534900075,0.0011,1953.2,1952.9,1.28009856]
[1771534900263,0.0011,1953.2,1953.0,2.02167579]
[1771534902396,0.0011,1953.2,1953.0,3.30175029]
[1771534902563,0.0011,1953.2,1953.0,2.02167579]
[1771534902769,0.0011,1953.2,1952.8,3.30183747]
[1771534903270,0.0011,1953.2,1952.9,2.02167579]
[1771534904297,1.95341164,1953.2,1952.7,2.02167579]
[1771534904997,1.95231164,1953.1,1952.6,0.001]
[1771534905972,1.95231164,1953.1,1952.6,2.02267579]
[1771534906806,1.95231164,1953.0,1952.6,3.30299879]
[1771534907099,1.95231164,1953.0,1952.7,2.02167579]
[1771534907307,3.23339803,1953.2,1952.7,2.02167579]
[1771534907507,1.95341164,1953.2,1952.7,2.02167579]
[1771534908332,1.95341164,1953.2,1952.8,0.001]
[1771534908471,0.0011,1953.1,1952.8,0.001]
[1771534909306,0.0011,1953.1,1952.8,2.02267579]
[1771534910309,1.95341164,1953.1,1952.8,0.001]
[1771534910506,1.95341164,1953.1,1952.7,0.001]
[1771534910883,1.28008192,1953.0,1952.7,0.001]
[1771534911083,1.95231164,1952.9,1952.7,0.001]
[1771534915315,1.95231164,1953.0,1952.7,0.001]
[1771534917019,1.95341164,1953.1,1952.7,2.02267579]
[1771534917397,1.95341164,1953.1,1952.7,3.30294523]
[1771534919540,1.95341164,1953.1,1952.8,2.02167579]
[1771534919716,0.0011,1953.1,1952.8,2.02167579]
[1771534920242,1.27954584,1953.9,1952.8,2.02167579]
[1771534920452,4.51393743,1953.9,1952.8,2.02167579]
[1771534920996,1.28207995,1953.8,1953.1,2.02167579]
[1771534921228,0.00153886,1954.0,1953.2,2.02167579]
[1771534921440,0.00153886,1954.0,1953.4,2.02876257]
[1771534921617,2.91421013,1954.5,1953.4,2.02876257]
[1771534921950,2.91421013,1954.5,1953.9,2.02876257]
[1771534922658,4.19331188,1954.5,1953.9,2.02876257]
[1771534923023,2.91421013,1954.5,1953.9,2.02876257]
[1771534923367,4.19331928,1954.5,1953.9,2.02876257]
[1771534923661,1.98821013,1954.2,1953.5,3.30847448]
[1771534923939,1.98821013,1954.2,1953.5,2.02876257]
[1771534924150,1.98821013,1954.2,1953.5,3.30849892]
[1771534924865,1.98821013,1954.2,1953.5,2.02876257]
[1771534925143,1.98821013,1954.2,1953.3,2.02876257]
[1771534925302,1.98821013,1954.2,1953.1,3.30874573]
[1771534925506,1.98821013,1954.0,1953.1,3.30874573]
[1771534925709,1.98821013,1954.0,1953.2,2.02876257]
[1771534925710,1.98821013,1953.8,1953.2,2.02876257]
[1771534926162,1.98821013,1954.3,1953.2,2.02876257]
[1771534927723,3.43411172,1954.2,1953.4,1.95626831]
[1771534928320,2.15481585,1954.4,1953.4,1.95626831]
[1771534928517,3.43696902,1954.5,1953.4,1.95626831]
[1771534929330,2.15781585,1954.5,1953.4,0.922]
[1771534929532,3.43692494,1954.5,1953.5,1.95626831]
[1771534930330,1.28211907,1954.5,1953.7,1.95626831]
[1771534930660,1.28211146,1954.5,1953.7,1.95626831]
[1771534930876,0.003,1954.5,1953.7,1.95626831]
[1771534931163,1.28210675,1954.5,1953.7,1.95626831]
[1771534932165,0.003,1954.5,1953.7,1.95626831]
[1771534932369,1.28209961,1954.5,1953.9,1.95626831]
[1771534932570,0.003,1954.5,1953.9,1.95626831]
[1771534934140,0.0011,1954.4,1953.9,1.95626831]
[1771534934327,0.0011,1954.4,1954.1,1.95626831]
[1771534934532,7.67734392,1954.8,1954.1,1.95626831]
[1771534934533,0.92353886,1955.0,1954.3,1.95626831]
[1771534934733,0.92353886,1955.0,1954.1,1.95626831]
[1771534934734,2.15481585,1954.9,1954.1,1.95626831]
[1771534934975,2.15591585,1954.5,1953.5,1.95626831]
[1771534936844,2.15481585,1954.3,1953.6,1.95626831]
[1771534938561,2.15481585,1954.3,1953.4,1.95626831]
[1771534938838,2.15481585,1954.1,1953.4,1.95626831]
[1771534939245,2.15481585,1954.1,1953.3,0.001]
[1771534939456,2.15481585,1954.1,1953.3,1.95726831]
[1771534941162,2.15481585,1953.9,1953.3,3.23715133]
[1771534941673,2.15481585,1953.9,1953.3,0.001]
[1771534942266,2.15481585,1953.7,1953.2,0.001]
[1771534942838,2.15481585,1953.7,1953.0,0.00253886]
[1771534943070,2.15481585,1953.5,1953.0,3.23887904]
[1771534943397,3.43445653,1953.7,1953.1,1.95626831]
[1771534943540,1.27960891,1953.8,1953.1,1.95626831]
[1771534943740,1.27946059,1954.0,1953.1,1.95626831]
[1771534943947,3.43422322,1954.1,1953.1,1.95626831]
[1771534944358,2.15481585,1954.0,1953.1,1.95626831]
[1771534945758,2.15481585,1953.9,1953.3,1.95626831]
[1771534948085,1.27955778,1953.8,1953.3,3.23712604]
[1771534948292,1.28065778,1953.8,1953.3,3.23712604]
[1771534948454,1.28065778,1953.8,1953.3,1.95726831]
[1771534948654,1.28065778,1953.8,1953.3,3.23715205]
[1771534949284,0.0011,1953.8,1953.3,3.23715205]
[1771534949650,2.15591585,1953.8,1953.4,1.95626831]
[1771534950279,1.27962327,1953.7,1953.3,0.001]
[1771534950450,7.27429818,1953.8,1953.4,1.2798198]
[1771534950451,2.15591585,1953.8,1953.4,1.2798198]
[1771534950655,2.15591585,1953.8,1953.3,3.23710212]
[1771534950956,3.43547505,1953.8,1953.3,3.23710212]
[1771534951158,2.15591585,1953.8,1953.3,3.23710212]
[1771534951474,2.15591585,1953.8,1953.4,1.95626831]
[1771534954697,3.43547685,1953.8,1953.4,1.95626831]
[1771534954856,2.15481585,1953.7,1953.3,0.001]
[1771534955263,0.0011,1953.8,1953.4,1.95626831]
[1771534956693,0.0011,1953.8,1953.6,2.06029694]
[1771534957410,0.0011,1953.8,1953.5,2.06029694]
[1771534958901,0.0011,1953.8,1953.5,1.27969717]
[1771534959200,2.00547459,1953.8,1953.3,3.34116295]
[1771534959502,2.00547459,1953.8,1953.4,2.06029694]
[1771534959697,2.00547459,1953.8,1953.3,0.001]
[1771534960604,0.0011,1953.8,1953.4,2.06029694]
[1771534960982,0.0011,1953.8,1953.4,3.34008613]
[1771534961781,0.0011,1953.8,1953.5,2.06029694]
[1771534962404,0.0011,1953.8,1953.4,1.27978919]
[1771534962803,0.0011,1953.7,1953.4,1.27978919]
[1771534963304,0.0011,1953.7,1953.3,3.34118075]
[1771534963602,0.0011,1954.0,1953.6,2.06029694]
[1771534965305,2.00547459,1954.0,1953.5,1.27971277]
[1771534965499,2.00547459,1954.0,1953.5,3.34000971]
[1771534967283,2.00437459,1953.9,1953.5,3.34000971]
[1771534967803,0.0011,1954.0,1953.5,3.34000971]
[1771534967804,0.0011,1954.0,1953.6,2.06029694]
[1771534968010,2.92637459,1954.3,1953.6,2.06029694]
[1771534968512,0.922,1954.3,1953.6,2.06029694]
[1771534969010,2.00437459,1954.2,1953.6,2.06029694]
[1771534969610,2.00437459,1954.2,1953.4,5.11917132]
[1771534969611,2.00437459,1954.0,1953.4,3.34008625]
[1771534970505,2.00437459,1954.0,1953.5,2.06029694]
[1771534970709,6.03897859,1954.3,1953.5,2.06029694]
[1771534970710,2.92637459,1954.3,1953.5,2.06029694]
[1771534971209,2.00437459,1954.3,1953.5,2.06029694]
[1771534971603,2.00437459,1954.5,1953.6,1.27968877]
[1771534971910,2.00437459,1954.5,1953.7,2.06029694]
[1771534974008,3.28351773,1954.5,1953.9,2.06029694]
[1771534974815,2.00437459,1954.5,1953.9,2.06029694]
[1771534975326,2.00437459,1954.9,1953.9,2.06029694]
[1771534976402,2.00437459,1954.8,1954.1,2.06029694]
[1771534976797,0.0011,1954.4,1954.1,2.06029694]
[1771534977187,0.0011,1954.4,1953.9,2.06029694]
[1771534977188,2.00547459,1954.4,1953.9,2.06029694]
[1771534977391,0.0011,1954.4,1953.9,2.06029694]
[1771534978420,0.0011,1954.4,1954.1,2.06029694]
[1771534979204,0.0011,1954.4,1954.0,3.33972375]
[1771534979919,0.0011,1954.4,1954.0,2.06029694]
[1771534980419,2.00547459,1954.4,1953.9,1.2794435]
[1771534980618,2.00547459,1954.4,1953.9,2.06029694]
[1771534980821,0.0011,1954.4,1953.9,2.06029694]
[1771534981195,0.0011,1954.5,1953.9,2.05016285]
[1771534982517,0.0011,1954.5,1954.0,1.27942681]
[1771534982724,0.0011,1954.5,1954.1,2.05016285]
[1771534984696,0.0011,1954.5,1954.3,2.05016285]
[1771534987110,1.93309694,1954.5,1954.1,3.27454508]
[1771534987316,1.93309694,1954.5,1953.9,7.11307898]
[1771534987620,1.93309694,1954.5,1953.9,3.27472735]
[1771534987820,1.93309694,1954.5,1953.9,1.27949229]
[1771534988122,1.93309694,1954.5,1953.8,1.28050927]
[1771534988449,1.93309694,1954.5,1953.8,0.001]
[1771534988796,1.93309694,1954.5,1953.7,0.001]
[1771534989015,1.93199694,1954.3,1953.7,0.001]
[1771534990939,1.93199694,1954.3,1953.8,0.001]
[1771534991229,1.93199694,1954.1,1953.8,0.001]
[1771534993657,1.93199694,1953.9,1953.8,0.001]
[1771534993804,1.93199694,1953.9,1953.7,0.001]
[1771534994010,1.93199694,1953.9,1953.5,0.001]
[1771534994704,1.93199694,1953.7,1953.3,0.001]
[1771534995919,1.93199694,1953.5,1953.3,0.001]
[1771534997313,3.21166429,1953.7,1953.3,0.001]
[1771534997519,1.27966735,1953.7,1953.3,0.001]
[1771534998121,7.05041517,1953.8,1953.3,0.001]
[1771535000516,1.93199694,1953.7,1953.3,0.001]
[1771535001950,5.11841823,1953.8,1952.8,0.001]
[1771535001951,1.93199694,1953.5,1952.8,0.001]
[1771535002124,1.93199694,1953.3,1952.8,0.001]
[1771535002533,3.21194778,1953.2,1952.8,0.001]
[1771535003760,3.21194778,1953.2,1952.9,0.001]
[1771535004145,5.11939614,1953.4,1952.9,0.001]
[1771535004345,7.05139308,1953.4,1952.9,0.001]
[1771535005558,3.21181674,1953.4,1952.9,1.99623506]
[1771535007654,1.93199694,1953.3,1952.9,0.001]
[1771535009761,1.93199694,1953.1,1952.9,0.001]
[1771535011453,1.27995084,1953.2,1952.9,0.001]
[1771535012360,1.93199694,1953.2,1952.9,0.001]
[1771535012759,1.93199694,1953.2,1952.7,0.001]
[1771535013156,7.051278,1953.4,1952.7,1.99623506]
[1771535013357,1.93199694,1953.3,1952.7,1.99623506]
[1771535014863,1.93199694,1953.1,1952.7,1.99623506]
[1771535015068,3.21193557,1953.3,1952.8,1.99523506]
[1771535015773,3.21193557,1953.3,1952.8,1.99623506]
[1771535015976,0.0011,1953.2,1952.8,1.99623506]
[1771535017874,2.00252594,1953.2,1952.8,0.001]
[1771535019871,2.00142594,1953.0,1952.8,0.001]
[1771535020889,2.00142594,1953.0,1952.6,0.001]
[1771535021668,1.28001638,1953.1,1952.6,2.0365053]
[1771535022095,3.28144232,1953.1,1952.6,2.0365053]
[1771535022293,2.00142594,1953.0,1952.6,0.001]
[1771535023870,1.28014747,1952.9,1952.6,0.001]
[1771535024070,3.28157341,1952.9,1952.6,0.001]
[1771535025294,5.12011048,1953.1,1952.6,0.001]
[1771535025295,1.28001638,1953.1,1952.6,2.0365053]
[1771535026162,2.00142594,1953.1,1952.6,2.0365053]
[1771535026969,0.0011,1953.2,1952.7,2.0355053]
[1771535028300,0.0011,1953.2,1952.9,2.0355053]
[1771535028515,0.0011,1953.1,1952.9,2.0355053]
[1771535029601,0.0011,1953.3,1953.0,2.0355053]
[1771535030199,0.9231,1953.5,1953.0,2.0355053]
[1771535030409,3.67492978,1956.6,1953.2,2.0355053]
[1771535030410,1.27953675,1953.9,1953.2,2.0355053]
[1771535030906,2.00142594,1953.8,1953.2,2.0355053]
[1771535032611,1.27955989,1953.8,1953.4,2.0355053]
[1771535032908,1.27954715,1953.9,1953.4,2.0355053]
[1771535033535,3.28097309,1953.9,1953.4,2.0355053]
[1771535034715,2.0029648,1954.0,1953.4,2.0355053]
[1771535035512,2.0029648,1954.0,1953.5,2.0355053]
[1771535036912,2.00142594,1953.8,1952.8,2.0355053]
[1771535037217,2.00142594,1953.8,1952.9,2.0355053]
[1771535038900,2.00142594,1953.6,1953.0,2.0355053]
[1771535039300,2.00142594,1953.6,1952.8,2.0355053]
[1771535040017,2.00142594,1953.6,1952.9,2.0355053]
[1771535040712,2.00142594,1953.6,1953.3,0.001]
[1771535041011,2.00142594,1953.4,1952.7,2.9595053]
[1771535041218,2.00142594,1953.4,1952.7,2.0365053]
[1771535041793,2.00142594,1953.4,1953.0,0.001]
[1771535042303,2.00142594,1953.4,1953.0,1.95086332]
[1771535042502,1.27975428,1953.5,1953.0,1.95086332]
[1771535042904,2.01223647,1953.4,1953.0,0.001]
[1771535043305,1.27988532,1953.3,1953.0,0.001]
[1771535045719,3.29212179,1953.3,1953.0,0.001]
[1771535046523,1.27986441,1953.4,1953.0,1.95086332]
[1771535047719,2.00770482,1953.3,1953.0,0.001]
[1771535049623,1.27995084,1953.2,1953.0,0.001]
[1771535050627,5.11942617,1953.4,1953.0,0.001]
[1771535051092,5.11942617,1953.4,1953.0,2.03553374]
[1771535051725,1.2798198,1953.4,1953.0,2.03553374]
[1771535053425,3.28746769,1953.5,1953.0,3.3156117]
[1771535053728,3.28746769,1953.5,1953.0,2.03553374]
[1771535054104,3.28746769,1953.5,1953.1,0.001]
[1771535054520,0.0011,1953.3,1953.1,0.001]
[1771535054711,0.0011,1953.3,1953.1,2.03553374]
[1771535055120,1.27976287,1953.5,1953.2,2.03453374]
[1771535055997,1.28081558,1953.6,1953.2,2.03453374]
[1771535058227,0.0011,1953.6,1953.2,2.03453374]
[1771535058405,0.0011,1953.6,1953.3,2.03453374]
[1771535060325,0.0011,1953.6,1953.3,3.31441636]
[1771535060704,0.0011,1953.6,1953.3,2.03453374]
[1771535061029,0.0011,1953.6,1953.3,3.31441123]
[1771535061335,0.0011,1953.6,1953.3,2.03453374]
[1771535062131,0.0011,1953.6,1953.4,2.03453374]
[1771535067732,0.0011,1953.6,1953.5,2.03453374]
[1771535067936,0.0011,1953.9,1953.6,1.27964356]
[1771535068124,0.0011,1953.9,1953.7,2.03453374]
[1771535069414,0.0011,1953.8,1953.7,2.03453374]
[1771535071638,0.0011,1953.8,1953.7,3.31415701]
[1771535072017,0.0011,1953.8,1953.7,2.03453374]
[1771535075146,2.00880482,1953.8,1953.5,2.03553374]
[1771535075316,2.00880482,1953.8,1953.5,0.001]
[1771535076250,1.27962327,1953.7,1953.2,0.001]
[1771535076466,1.87959269,1953.6,1953.2,0.001]
[1771535076648,1.87959269,1953.6,1952.8,1.98535054]
[1771535076822,1.27962327,1953.7,1952.7,0.001]
[1771535076823,1.93737602,1953.4,1952.7,0.001]
[1771535077646,1.93737602,1953.4,1952.8,1.87084082]
[1771535078524,1.93737602,1953.6,1953.0,1.87084082]
[1771535080217,1.93737602,1953.6,1952.8,1.87084082]
[1771535080846,1.93737602,1953.4,1952.8,1.87084082]
[1771535081445,1.93737602,1953.4,1952.8,3.15104792]
[1771535081638,1.93737602,1953.4,1952.8,1.87084082]
[1771535082944,3.21719933,1953.4,1952.8,3.15204999]
[1771535083126,0.0011,1953.3,1952.9,1.87084082]
[1771535085735,0.0011,1953.3,1953.0,1.87084082]
[1771535089224,1.93847602,1953.3,1952.8,0.001]
[1771535091446,1.93737602,1953.1,1952.8,0.001]
[1771535091848,3.21840337,1953.3,1952.8,1.87184082]
[1771535092956,1.93847602,1953.3,1952.8,1.87184082]
[1771535093656,3.21836295,1953.3,1952.9,1.87084082]
[1771535093853,1.93847602,1953.3,1952.9,1.87084082]
[1771535094152,0.0011,1953.3,1952.9,1.87084082]
[1771535095538,0.0011,1953.3,1953.0,1.87084082]
[1771535095745,0.0011,1953.2,1953.0,1.87084082]
[1771535096461,0.0011,1953.6,1953.1,1.87084082]
[1771535096756,0.9231,1953.8,1953.0,1.87084082]
[1771535097358,0.0011,1953.8,1953.0,1.87084082]
[1771535097550,0.0011,1953.8,1953.2,1.87084082]
[1771535099659,0.0011,1953.8,1953.4,1.87084082]
[1771535101366,0.0011,1953.9,1953.4,1.87084082]
[1771535101555,2.03051186,1954.7,1953.5,2.02944781]
[1771535101734,3.30948295,1954.7,1953.5,2.02944781]
[1771535102060,2.03051186,1954.7,1953.5,2.02944781]
[1771535102576,3.30926868,1955.1,1953.6,2.02944781]
[1771535102779,2.03051186,1954.9,1953.6,2.02944781]
[1771535103636,2.03051186,1954.9,1954.0,2.02944781]
[1771535103971,1.28031616,1955.0,1954.2,2.02944781]
[1771535103972,0.00153886,1955.0,1954.2,2.02944781]
[1771535104185,2.03051186,1954.9,1954.2,2.02944781]
[1771535104346,2.03051186,1954.9,1953.6,2.02944781]
[1771535104664,2.03051186,1954.9,1953.4,2.02944781]
[1771535104665,2.03051186,1954.5,1953.4,2.02944781]
[1771535104868,2.03051186,1954.5,1953.3,0.922]
[1771535104869,2.03051186,1954.3,1953.3,0.922]
[1771535105168,7.79781698,1954.5,1953.1,2.02944781]
[1771535105169,2.03051186,1954.1,1953.1,2.02944781]
[1771535106056,3.30993867,1954.0,1953.2,3.30939865]
[1771535106256,3.30993867,1954.0,1953.3,2.02944781]
[1771535106435,2.03051186,1953.9,1953.2,1.27995084]
[1771535107482,2.03051186,1953.9,1953.1,1.27996747]
[1771535107686,2.03051186,1953.9,1953.0,3.31101931]
[1771535108290,1.92769231,1953.7,1953.0,0.00153886]
[1771535110972,1.92769231,1953.5,1953.0,0.00153886]
[1771535115564,3.20748605,1953.5,1953.0,0.00153886]
[1771535118211,1.92769231,1953.4,1953.0,0.00153886]
[1771535120196,3.20757763,1953.3,1953.0,0.00153886]
[1771535121076,3.20757763,1953.3,1953.1,0.001]
[1771535124497,3.20731558,1953.7,1953.1,1.94014641]
[1771535124702,1.92769231,1953.7,1953.1,1.94014641]
[1771535124994,1.28066685,1953.8,1953.1,1.94014641]
[1771535125296,3.20835916,1953.8,1953.1,1.94014641]
[1771535125801,1.92769231,1953.7,1953.1,1.94014641]
[1771535126498,3.20738108,1953.6,1953.1,3.22012906]
[1771535126796,1.92769231,1953.5,1953.1,0.001]
[1771535127398,1.92769231,1953.5,1953.1,1.28101318]
[1771535127600,1.92769231,1953.7,1953.2,1.93914641]
[1771535127896,1.28065778,1953.8,1953.2,1.93914641]
[1771535128203,3.20835009,1953.8,1953.2,1.93914641]
[1771535128498,0.0011,1953.8,1953.2,1.93914641]
[1771535128703,0.0011,1953.8,1953.4,1.93914641]
[1771535129705,1.92879231,1953.8,1953.2,3.2190456]
[1771535130303,1.92879231,1953.8,1953.3,1.93914641]
[1771535130602,0.0011,1953.8,1953.3,1.93914641]
[1771535130898,0.0011,1953.8,1953.4,1.2798198]
[1771535131303,0.0011,1953.8,1953.3,3.21898282]
[1771535132104,1.92879231,1953.8,1953.3,3.21898282]
[1771535133916,3.20836858,1953.8,1953.3,3.21898282]
[1771535135498,1.92879231,1953.8,1953.3,3.21898282]
[1771535135801,3.20835123,1953.8,1953.3,3.21898282]
[1771535140407,3.20835123,1953.8,1953.4,2.04270248]
[1771535140713,0.0011,1953.9,1953.3,2.04270248]
[1771535143604,0.0011,1953.9,1953.5,2.04270248]
[1771535143802,0.0011,1954.1,1953.6,2.04270248]
[1771535145705,0.0011,1954.1,1953.8,2.04270248]
[1771535147614,0.0011,1954.1,1953.9,1.27949229]
[1771535148020,0.0011,1954.1,1953.9,3.32219477]
[1771535149424,2.04925913,1954.2,1954.0,2.04270248]
[1771535149425,0.0011,1954.2,1954.0,2.04270248]
[1771535149727,0.0011,1954.2,1954.1,3.32206382]
[1771535154312,0.0011,1954.2,1954.0,1.27936437]
[1771535154515,0.0011,1954.2,1953.9,1.27946143]
[1771535154516,2.04925913,1954.2,1953.9,1.27946143]
[1771535154816,2.04925913,1954.2,1953.8,1.2795088]
[1771535155010,2.04925913,1954.2,1953.7,2.04270248]
[1771535155209,2.04925913,1954.2,1953.5,4.24445676]
[1771535155409,2.04925913,1954.2,1953.5,2.20174942]
[1771535155935,2.04925913,1954.2,1953.5,4.2444519]
[1771535156105,2.04815913,1954.1,1953.5,4.2444519]
[1771535156437,2.04815913,1954.1,1953.5,2.20174942]
[1771535156603,2.04815913,1954.1,1953.5,4.2444519]
[1771535157329,2.04815913,1954.1,1953.5,1.27974942]
[1771535157701,2.04815913,1954.1,1953.6,0.001]
[1771535157904,2.04925913,1954.1,1953.6,0.001]
[1771535158127,1.27942681,1954.0,1953.6,0.001]
[1771535158328,2.04815913,1953.9,1953.6,0.001]
[1771535160334,2.04925913,1954.1,1953.6,2.04370248]
[1771535160636,2.04925913,1954.1,1953.6,0.001]
[1771535160637,2.04815913,1954.0,1953.6,0.001]
[1771535162112,0.0011,1954.1,1953.6,1.98967472]
[1771535162735,0.0011,1954.1,1953.8,1.98867472]
[1771535163136,1.83692262,1954.4,1953.8,1.98867472]
[1771535163137,1.82882669,1954.4,1953.8,1.98867472]
[1771535163434,1.83692262,1954.6,1953.8,1.98867472]
[1771535163667,1.83692262,1954.7,1953.8,1.98867472]
[1771535164713,1.83692262,1954.7,1954.0,1.98867472]
[1771535165034,1.83692262,1954.6,1954.0,1.98867472]
[1771535165225,1.83692262,1954.8,1954.0,1.98867472]
[1771535165425,1.83846148,1955.0,1954.0,1.98867472]
[1771535165736,1.83692262,1954.9,1954.0,1.98867472]
[1771535167464,1.83692262,1954.9,1954.2,1.99811744]
[1771535167948,1.98559655,1954.8,1954.2,1.99811744]
[1771535169744,1.98559655,1954.8,1954.4,1.99811744]
[1771535169962,1.98559655,1954.8,1954.3,1.27923041]
[1771535170625,1.98559655,1954.8,1954.3,1.28023041]
[1771535170950,1.98669655,1954.8,1954.3,1.28023041]
[1771535174845,1.98559655,1954.7,1954.3,1.28023041]
[1771535175055,1.98559655,1954.7,1954.3,0.001]
[1771535176121,1.98559655,1954.7,1954.2,0.001]
[1771535176327,1.98559655,1954.5,1954.0,0.001]
[1771535176728,1.98559655,1954.3,1953.6,0.001]
[1771535177028,1.98559655,1954.1,1953.6,0.001]
[1771535178526,1.98559655,1953.8,1953.4,0.001]
[1771535178733,1.98559655,1953.8,1953.1,0.001]
[1771535179528,1.98559655,1953.6,1953.1,0.001]
[1771535179863,1.27962327,1953.7,1952.9,0.001]
[1771535179864,1.98559655,1953.4,1952.9,0.001]
[1771535180657,1.98559655,1953.2,1952.5,0.001]
[1771535181252,0.922,1953.6,1952.5,0.001]
[1771535181253,1.98559655,1953.0,1952.5,0.001]
[1771535181668,1.98559655,1952.8,1952.5,0.001]
[1771535184262,5.1197917,1953.4,1952.6,1.99911744]
[1771535184263,1.98559655,1953.4,1952.6,1.99911744]
[1771535185075,1.98559655,1953.4,1952.7,0.001]
[1771535185772,0.0011,1952.8,1952.7,0.001]
[1771535186871,0.0011,1953.0,1952.7,0.001]
[1771535186872,0.0011,1953.0,1952.8,1.99811744]
[1771535187372,1.98669655,1953.0,1952.7,0.001]
[1771535187769,0.0011,1953.0,1952.7,0.001]
[1771535188346,0.0011,1953.0,1952.7,1.99911744]
[1771535188958,0.0011,1953.0,1952.8,1.28021302]
[1771535190982,0.0011,1953.0,1952.7,3.27934244]
[1771535191156,0.0011,1953.0,1952.7,0.001]
[1771535191680,0.0011,1953.0,1952.7,1.28127222]
[1771535192481,0.0011,1953.0,1952.7,3.27938966]
[1771535192991,1.98669655,1953.0,1952.7,0.001]
[1771535193344,1.98559655,1952.9,1952.6,0.001]
[1771535194876,0.0011,1953.0,1952.6,1.99911744]
[1771535195180,0.0011,1953.0,1952.6,3.27940127]
[1771535197181,0.0011,1953.0,1952.7,0.001]
[1771535197589,0.0011,1952.8,1952.7,0.001]
[1771535202462,1.98473106,1952.8,1952.6,0.001]
[1771535202667,1.98473106,1952.8,1952.5,0.001]
[1771535203285,1.98473106,1952.8,1952.4,0.001]
[1771535203458,1.98473106,1952.8,1952.4,1.28147458]
[1771535203966,0.0011,1952.8,1952.4,3.13147437]
[1771535204357,1.98473106,1952.8,1952.4,3.13147437]
[1771535206099,0.0011,1952.8,1952.4,3.13147437]
[1771535207575,0.0011,1952.8,1952.5,1.84999979]
[1771535208772,0.0011,1952.8,1952.6,1.28034415]
[1771535210177,0.0011,1952.8,1952.5,6.97244688]
[1771535210178,1.98473106,1952.8,1952.5,0.001]
[1771535218807,1.98473106,1952.9,1952.5,1.85099979]
[1771535221622,1.98473106,1952.9,1952.6,3.23989388]
[1771535221832,0.0011,1953.1,1952.7,1.95954973]
[1771535222324,0.0011,1952.8,1952.7,1.95954973]
[1771535222498,0.0011,1953.1,1952.7,1.95954973]
[1771535223820,1.8087211,1953.6,1953.0,1.95954973]
[1771535224225,1.8087211,1953.5,1953.0,1.95954973]
[1771535224721,1.8087211,1953.5,1952.8,3.23976275]
[1771535224923,1.8087211,1953.5,1952.9,1.95954973]
[1771535226431,1.8087211,1953.5,1953.0,1.28008192]
[1771535226633,1.8087211,1953.5,1953.0,3.23963165]
[1771535226839,1.96858122,1953.4,1952.8,1.8830956]
[1771535227013,1.96858122,1953.4,1952.7,3.16335339]
[1771535227325,1.96858122,1953.4,1952.6,4.08743962]
[1771535227825,1.27977339,1953.5,1952.6,0.001]
[1771535227826,1.96858122,1953.2,1952.6,0.001]
[1771535228612,1.96858122,1953.0,1952.6,0.001]
[1771535230721,1.96858122,1952.8,1952.6,0.001]
[1771535231430,1.96858122,1952.8,1952.4,0.001]
[1771535232124,1.96858122,1952.8,1952.2,0.001]
[1771535232710,1.96858122,1952.6,1952.2,0.001]
[1771535235000,3.24899095,1952.5,1952.2,0.001]
[1771535235403,1.96858122,1952.5,1952.2,0.001]
[1771535235822,1.96858122,1952.5,1952.4,0.001]
[1771535236725,1.96858122,1952.5,1952.2,0.001]
[1771535237321,3.24905082,1952.5,1952.2,0.001]
[1771535238932,1.96858122,1952.5,1952.2,0.001]
[1771535240134,3.24899368,1952.5,1952.2,0.001]
[1771535242630,3.24899368,1952.5,1952.2,1.8840956]
[1771535242838,1.96858122,1952.5,1952.2,1.8840956]
[1771535243036,10.41926092,1952.7,1952.2,1.8840956]
[1771535243037,8.18960796,1952.9,1952.2,1.8840956]
[1771535243212,4.17173841,1952.9,1952.2,1.8840956]
[1771535243417,2.89158122,1952.9,1952.2,1.8840956]
[1771535243623,5.29802674,1953.1,1952.3,1.8830956]
[1771535243624,3.24861644,1953.1,1952.3,1.8830956]
[1771535243823,1.96858122,1952.8,1952.3,1.8830956]
[1771535245335,1.96858122,1953.0,1952.4,3.16357091]
[1771535247836,0.0011,1952.9,1952.4,3.16357091]
[1771535248745,1.96968122,1952.9,1952.4,3.16357091]
[1771535251443,1.96968122,1952.9,1952.5,1.8830956]
[1771535252949,0.0011,1952.9,1952.5,1.8830956]
[1771535253119,0.0011,1953.0,1952.6,1.8830956]
[1771535253322,0.0011,1953.0,1952.8,1.8830956]
[1771535253723,0.0011,1953.2,1952.8,1.8830956]
[1771535255922,0.0011,1953.2,1953.0,1.8830956]
[1771535259650,0.0011,1953.1,1953.0,3.16317752]
[1771535260358,0.0011,1953.4,1953.1,1.85421195]
[1771535260544,1.75032475,1954.0,1953.1,1.85421195]
[1771535261432,1.28096646,1954.0,1953.1,1.85421195]
[1771535261639,1.74878589,1953.9,1953.1,1.85421195]
[1771535261844,1.74878589,1953.9,1953.2,1.85421195]
[1771535261845,1.74878589,1953.7,1953.2,1.85421195]